bitfinex/quotes_ETHUSD_20250814
["timestamp","ask_amount","ask_price","bid_price","bid_amount"]
[1755157758792,3.253,4736.2,4736.1,0.001]
[1755157758992,3.3586,4736.2,4736.1,0.001]
[1755157759777,13.8008,4736.2,4736.1,0.001]
[1755157759996,15.91219732,4736.2,4736.1,0.001]
[1755157760178,14.4197,4736.2,4736.1,0.001]
[1755157761113,13.8008,4736.2,4736.1,0.001]
[1755157761324,15.91219732,4736.2,4736.1,0.001]
[1755157761613,13.8008,4736.2,4736.1,0.001]
[1755157762988,13.3586,4736.2,4736.1,0.001]
[1755157763798,3.3586,4736.2,4736.1,0.001]
[1755157764003,3.8173,4736.2,4736.1,0.001]
[1755157764314,6.58707123,4736.2,4736.1,0.001]
[1755157764513,6.56589732,4736.2,4736.1,0.001]
[1755157764693,16.56589732,4736.2,4736.1,0.001]
[1755157767580,21.63089732,4736.2,4736.1,0.001]
[1755157770701,34.48346193,4736.2,4736.1,0.001]
[1755157781220,33.84626193,4736.2,4736.1,0.001]
[1755157782433,34.48346193,4736.2,4736.1,0.001]
[1755157785262,2.11221077,4734.4,4733.6,1.89350755]
[1755157785413,16.57643852,4734.3,4733.2,0.6304]
[1755157785613,3.257,4734.2,4733.2,0.6304]
[1755157785815,10.0,4733.7,4733.2,0.6304]
[1755157786048,3.257,4733.6,4733.3,0.6304]
[1755157786355,3.257,4733.5,4733.4,0.6304]
[1755157786641,3.257,4733.5,4733.4,2.7430463]
[1755157786847,13.257,4733.5,4733.4,2.7430463]
[1755157787029,13.257,4733.5,4733.4,5.9297463]
[1755157787227,13.257,4733.5,4733.4,3.8171]
[1755157787426,13.257,4733.5,4733.4,3.6304]
[1755157787631,3.257,4733.5,4733.4,5.7430463]
[1755157788621,13.0092751,4735.0,4734.5,2.1121126]
[1755157788622,10.0,4735.0,4734.5,2.1121126]
[1755157788822,10.0,4735.0,4734.9,2.11197702]
[1755157789153,13.258,4735.0,4734.9,0.6304]
[1755157789651,3.258,4735.0,4734.9,0.6304]
[1755157790722,3.258,4735.0,4734.9,5.74237702]
[1755157790917,3.258,4735.0,4734.9,5.92907702]
[1755157793435,3.258,4735.0,4734.9,6.73319019]
[1755157795253,3.3636,4735.0,4734.9,6.54649019]
[1755157796161,3.3636,4735.0,4734.9,6.73319019]
[1755157797025,3.258,4735.0,4734.9,6.73319019]
[1755157797352,3.258,4735.0,4734.9,7.36656819]
[1755157800354,3.258,4735.0,4734.9,7.17986819]
[1755157800552,3.258,4735.0,4734.9,7.36656819]
[1755157801251,3.258,4735.0,4734.9,6.37575502]
[1755157801451,0.002,4735.1,4735.0,5.11193241]
[1755157801748,3.252,4735.1,4735.0,5.11193241]
[1755157801952,3.3576,4735.1,4735.0,5.11193241]
[1755157802633,3.7989,4735.1,4734.3,0.1056]
[1755157803032,0.4413,4735.0,4734.6,2.11210035]
[1755157803237,0.1056,4734.4,4734.3,2.11224468]
[1755157803540,0.1056,4734.4,4734.3,5.11224468]
[1755157804057,0.12677391,4734.4,4734.0,2.11235041]
[1755157804225,0.5469,4734.4,4734.1,2.11232345]
[1755157804426,0.1056,4734.2,4733.6,2.11254916]
[1755157804654,0.02117391,4734.1,4733.6,2.74433685]
[1755157804859,0.02117391,4734.1,4733.8,2.11246778]
[1755157805064,0.1056,4734.2,4733.8,2.11246778]
[1755157805636,3.25,4734.5,4733.3,1.23395]
[1755157805637,3.25,4734.5,4733.3,0.001]
[1755157805837,0.4413,4734.2,4733.7,2.112473]
[1755157806054,0.1056,4733.8,4733.7,2.112473]
[1755157806252,3.3556,4733.8,4733.7,2.112473]
[1755157806965,3.3556,4733.8,4733.3,0.001]
[1755157807139,0.4413,4733.7,4733.4,2.1126463]
[1755157807340,0.1056,4733.5,4733.3,0.001]
[1755157807543,0.1056,4733.5,4733.3,0.1877]
[1755157807746,0.1056,4733.5,4733.4,2.1126463]
[1755157807950,0.1056,4733.5,4733.4,2.7120463]
[1755157808651,0.1056,4733.5,4733.4,3.10395829]
[1755157808851,0.1056,4733.5,4733.4,3.31178475]
[1755157809161,3.25,4733.8,4733.7,2.11251241]
[1755157809365,3.3556,4733.8,4733.7,2.11251241]
[1755157810875,3.248,4734.3,4733.7,0.8917]
[1755157811163,10.0,4735.0,4734.9,2.11197702]
[1755157811374,13.248,4735.0,4734.9,2.11197702]
[1755157811574,10.1056,4735.0,4734.9,5.71137702]
[1755157811861,3.248,4735.4,4735.0,5.11193241]
[1755157812062,0.1056,4735.3,4735.0,3.81233335]
[1755157812263,0.1056,4735.3,4735.0,2.11193241]
[1755157812935,0.1056,4735.3,4735.0,5.73245173]
[1755157813136,3.248,4735.4,4735.0,5.89803241]
[1755157813336,3.248,4735.4,4735.0,5.71133241]
[1755157813943,3.248,4735.4,4735.0,5.89803241]
[1755157814143,3.248,4735.4,4735.0,6.62849335]
[1755157814887,3.248,4735.4,4735.0,6.81519335]
[1755157815245,3.248,4735.4,4735.0,6.62849335]
[1755157816672,0.1056,4735.6,4735.0,6.81519335]
[1755157816886,0.002,4736.1,4735.8,2.11157565]
[1755157817051,0.002,4736.1,4736.0,5.11148648]
[1755157817249,0.002,4736.1,4736.0,5.71088648]
[1755157817667,0.002,4736.1,4736.0,5.11148648]
[1755157817870,0.002,4736.1,4736.0,5.71088648]
[1755157818068,0.002,4736.1,4736.0,5.11148648]
[1755157818377,0.002,4736.1,4736.0,5.71088648]
[1755157818583,0.002,4736.1,4736.0,7.08189017]
[1755157822664,0.002,4736.1,4736.0,6.48249017]
[1755157822988,1.0602,4736.1,4736.0,2.11148648]
[1755157823277,1.0602,4736.1,4735.6,2.11163968]
[1755157823479,0.4514,4736.0,4735.6,2.11163968]
[1755157823780,1.0582,4736.0,4735.6,2.11163968]
[1755157824078,0.4514,4736.0,4735.9,2.11153107]
[1755157824377,0.002,4736.1,4735.9,2.11153107]
[1755157824588,0.7124,4736.0,4735.6,3.0]
[1755157824880,1.0582,4735.9,4735.8,2.11157565]
[1755157825280,1.1638,4735.9,4735.8,2.11157565]
[1755157825483,4.4088,4735.9,4735.8,2.11157565]
[1755157826263,4.4088,4735.9,4735.6,2.11163214]
[1755157826464,0.4514,4735.8,4735.0,0.91816094]
[1755157826778,1.0582,4735.8,4735.5,2.11170917]
[1755157826983,0.6068,4735.7,4735.6,2.11166365]
[1755157827182,1.0582,4735.7,4735.6,2.11166365]
[1755157828554,1.0582,4735.7,4735.5,2.11169419]
[1755157828763,0.6068,4735.7,4735.6,2.11166483]
[1755157829156,3.3506,4735.9,4735.7,2.11161933]
[1755157829471,0.4514,4735.8,4735.7,2.11161933]
[1755157829786,3.3506,4735.9,4735.5,2.11169444]
[1755157830178,3.3506,4735.9,4735.3,0.02111798]
[1755157830487,3.3506,4735.9,4735.6,2.11163169]
[1755157830682,0.4514,4735.8,4735.7,2.11160713]
[1755157831779,3.3506,4735.9,4735.8,5.11157565]
[1755157831978,3.3506,4735.9,4735.8,2.11157565]
[1755157832186,0.002,4736.1,4736.0,2.11148648]
[1755157832493,0.002,4736.1,4736.0,6.49852269]
[1755157832698,0.002,4736.1,4736.0,6.60412269]
[1755157832864,0.002,4736.1,4736.0,6.79082269]
[1755157833061,1e-08,4736.1,4736.0,6.60412269]
[1755157833295,1e-08,4736.2,4736.1,5.1114419]
[1755157833490,1e-08,4736.2,4736.1,7.81757668]
[1755157833786,1e-08,4736.2,4736.1,8.03077668]
[1755157833961,1e-08,4736.2,4736.1,11.27477668]
[1755157834460,0.002,4736.6,4736.5,2.11126359]
[1755157834789,0.002,4736.7,4736.6,5.11121901]
[1755157834990,0.002,4736.7,4736.6,7.21942929]
[1755157835393,1e-08,4737.2,4737.0,2.11104074]
[1755157835691,0.002,4737.6,4737.3,2.11090705]
[1755157835897,1e-08,4737.4,4737.3,9.25050705]
[1755157836989,1e-08,4737.4,4737.3,9.32122129]
[1755157837178,1e-08,4737.4,4737.3,10.86489787]
[1755157837691,1e-08,4738.4,4737.3,8.75399082]
[1755157837896,1e-08,4738.4,4738.3,0.1056]
[1755157838061,0.002,4739.6,4738.3,6.25006155]
[1755157838268,0.002,4739.6,4738.8,2.11023887]
[1755157838468,0.002,4739.6,4738.8,9.48500494]
[1755157838682,0.002,4739.6,4738.8,10.08930494]
[1755157840699,0.002,4739.6,4738.8,9.48300494]
[1755157841592,0.4514,4739.2,4738.8,8.45883887]
[1755157841781,0.6068,4739.4,4738.8,5.21583887]
[1755157841986,0.4534,4738.9,4738.8,5.21583887]
[1755157843103,0.002,4738.9,4738.8,5.21583887]
[1755157846106,0.4534,4738.9,4738.8,5.21583887]
[1755157847120,0.002,4738.9,4738.8,6.27265452]
[1755157847277,0.002,4738.9,4738.8,10.31455952]
[1755157848702,0.002,4738.9,4738.8,9.71025952]
[1755157849086,0.002,4738.9,4738.8,6.46825952]
[1755157850913,0.4534,4738.9,4738.8,6.46825952]
[1755157852921,0.002,4738.9,4738.8,6.46825952]
[1755157854915,0.4452,4738.9,4738.8,5.41144387]
[1755157855086,1.0453,4738.9,4738.8,5.41144387]
[1755157856403,0.4452,4738.9,4738.8,5.41144387]
[1755157857115,0.002,4738.9,4738.8,5.30584387]
[1755157857281,0.4452,4738.9,4738.8,5.30584387]
[1755157859414,0.002,4738.9,4738.8,5.30584387]
[1755157860587,0.002,4738.9,4738.8,6.48771981]
[1755157862016,0.4452,4738.9,4738.8,6.48771981]
[1755157863195,0.002,4738.9,4738.8,6.48771981]
[1755157863521,0.4452,4738.9,4738.8,6.48771981]
[1755157863698,0.4452,4738.9,4738.8,6.29211481]
[1755157864291,0.002,4738.9,4738.8,6.29211481]
[1755157865107,0.4452,4738.9,4738.8,6.29211481]
[1755157865519,1.0453,4738.9,4738.8,5.21583887]
[1755157865813,0.002,4738.9,4738.8,5.21583887]
[1755157866119,0.4452,4738.9,4738.8,5.21583887]
[1755157866411,0.002,4738.9,4738.8,5.21583887]
[1755157866813,0.4452,4738.9,4738.8,5.21583887]
[1755157867186,1.0453,4738.9,4738.8,5.21583887]
[1755157867584,0.002,4738.9,4738.8,5.21583887]
[1755157868594,0.4452,4738.9,4738.8,5.21583887]
[1755157871619,0.002,4738.9,4738.8,5.21583887]
[1755157872494,0.4452,4738.9,4738.8,5.21583887]
[1755157873128,0.002,4738.9,4738.8,5.21583887]
[1755157873292,0.002,4738.9,4738.8,6.46190506]
[1755157873599,1e-08,4739.4,4738.9,3.0]
[1755157873790,1e-08,4739.4,4739.3,0.1056]
[1755157873992,1e-08,4739.4,4739.3,10.92411533]
[1755157874225,1e-08,4739.4,4739.3,6.79866938]
[1755157875028,1e-08,4739.4,4739.3,10.03866938]
[1755157875189,0.44320001,4739.4,4739.3,5.21561624]
[1755157875389,0.44320001,4739.4,4739.3,7.11096722]
[1755157875591,1.04330001,4739.4,4739.3,7.11096722]
[1755157875910,1.04330001,4739.4,4739.3,5.21561624]
[1755157876299,1.04330001,4739.4,4739.3,5.11001624]
[1755157878545,1.04330001,4739.4,4739.3,2.11001624]
[1755157878707,1.04330001,4739.4,4736.2,3.14781629]
[1755157878708,24.01095462,4739.4,4738.2,1.89535098]
[1755157879032,24.01095462,4739.4,4736.2,0.5724]
[1755157879033,0.1056,4738.4,4736.4,0.1056]
[1755157879229,0.1056,4737.5,4736.7,2.1111346]
[1755157879399,0.5488,4737.5,4736.3,0.1846737]
[1755157879599,1.0695,4737.5,4736.6,2.11118203]
[1755157879902,1.0695,4737.5,4736.8,2.1111203]
[1755157880438,1.0695,4737.5,4736.6,2.11118117]
[1755157880597,1.0695,4737.5,4736.7,2.11116926]
[1755157880796,0.5488,4737.5,4736.8,2.11112817]
[1755157880999,0.5488,4737.5,4736.6,2.11120431]
[1755157881227,0.1056,4737.5,4736.5,0.4512]
[1755157881422,0.5719,4737.5,4736.8,2.11109542]
[1755157881599,0.5719,4737.5,4736.6,0.1056]
[1755157882019,0.1056,4737.5,4736.6,0.5595]
[1755157882343,1.0926,4737.5,4736.6,5.21680735]
[1755157882530,1.0926,4737.5,4736.6,2.21680735]
[1755157882704,1.0926,4737.5,4736.6,2.11120735]
[1755157883030,0.5719,4737.5,4736.4,1.1363]
[1755157883229,0.5719,4737.5,4736.7,2.11113761]
[1755157883436,0.5719,4737.5,4736.5,5.1112387]
[1755157884034,0.5719,4737.5,4736.4,0.1056]
[1755157884200,1.0902,4737.5,4736.4,0.1056]
[1755157884621,1.0902,4737.5,4736.6,2.11121268]
[1755157884842,1.0902,4737.5,4737.3,0.001]
[1755157885731,11.11137391,4737.5,4737.3,0.001]
[1755157885913,11.0902,4737.5,4737.3,0.001]
[1755157886114,11.0902,4737.5,4736.3,0.0790737]
[1755157886115,11.0902,4737.5,4736.9,0.00072]
[1755157886449,0.48747391,4737.4,4736.9,0.00072]
[1755157886627,0.5183,4737.3,4736.9,0.00072]
[1755157886955,0.4663,4737.4,4736.9,0.00072]
[1755157886956,0.1056,4737.0,4736.9,0.00072]
[1755157887106,3.3646,4737.0,4736.9,0.00072]
[1755157887306,3.85207391,4737.0,4736.9,0.00072]
[1755157887536,3.8309,4737.0,4736.9,0.00072]
[1755157887726,3.3646,4737.0,4736.9,0.00072]
[1755157887926,3.8309,4737.0,4736.9,0.00072]
[1755157888129,4.3492,4737.0,4736.9,0.00072]
[1755157888307,3.8309,4737.0,4736.9,0.00072]
[1755157888805,3.3646,4737.0,4736.9,0.00072]
[1755157889207,3.3646,4737.0,4736.4,2.11128339]
[1755157889524,0.1056,4736.5,4736.4,2.11128339]
[1755157890014,0.1056,4736.5,4736.4,2.11130816]
[1755157890536,0.1056,4737.1,4737.0,2.11102421]
[1755157890704,3.3616,4737.1,4737.0,6.14172421]
[1755157891537,3.257,4737.1,4737.0,6.14172421]
[1755157891939,3.257,4737.1,4737.0,6.96700823]
[1755157892138,3.257,4737.1,4737.0,7.07260823]
[1755157892715,0.1056,4737.6,4737.4,2.11082868]
[1755157892920,3.256,4737.5,4737.4,2.11082868]
[1755157893330,3.256,4737.5,4737.2,2.11090828]
[1755157893639,3.256,4737.5,4737.3,2.11090369]
[1755157893827,3.256,4737.5,4737.4,2.11086249]
[1755157894849,3.256,4737.5,4737.4,3.14156249]
[1755157895821,3.256,4737.5,4737.4,2.68766249]
[1755157896025,3.256,4737.5,4737.4,2.11086249]
[1755157898746,0.1056,4737.6,4737.5,2.11081794]
[1755157899227,3.3566,4737.6,4737.5,5.68761794]
[1755157899439,3.3566,4737.6,4737.5,3.5768]
[1755157899747,3.3566,4737.6,4737.5,3.0]
[1755157901449,0.1056,4737.6,4737.5,5.11081794]
[1755157901648,3.25,4737.6,4737.5,5.68761794]
[1755157902034,3.25,4737.6,4737.5,3.5768]
[1755157902337,3.25,4737.6,4737.5,3.0]
[1755157903854,3.25,4737.6,4737.5,5.11081794]
[1755157904351,3.25,4737.6,4737.5,3.0]
[1755157904542,3.25,4737.6,4737.5,5.11081794]
[1755157904863,3.25,4737.6,4737.5,5.93606399]
[1755157905050,3.25,4737.6,4737.5,3.82524605]
[1755157905232,3.25,4737.6,4737.5,3.0]
[1755157905952,3.25,4737.6,4737.0,0.1056]
[1755157905953,3.7163,4737.6,4736.7,2.11113126]
[1755157906125,0.02117391,4737.5,4736.7,2.11113126]
[1755157906649,0.02117391,4737.5,4736.5,3.0]
[1755157906838,0.1056,4737.3,4736.8,2.11111717]
[1755157907455,0.1056,4737.3,4736.8,3.5768]
[1755157907631,0.1056,4737.3,4736.8,2.68792316]
[1755157908327,0.1056,4737.3,4736.6,0.1056]
[1755157908328,0.1056,4737.3,4736.7,2.11117347]
[1755157908525,0.1056,4737.3,4736.8,2.11111973]
[1755157908849,0.5719,4737.3,4736.6,2.68798063]
[1755157909040,0.4663,4737.2,4736.7,5.11115928]
[1755157909250,3.246,4737.1,4736.7,5.11115928]
[1755157909427,3.246,4737.1,4736.6,3.0]
[1755157909627,3.246,4737.1,4736.6,2.11120646]
[1755157910638,0.4663,4737.0,4736.4,2.11130816]
[1755157910839,0.1056,4736.9,4736.4,2.11130816]
[1755157911322,0.1056,4736.9,4736.5,3.0]
[1755157912160,0.1056,4736.9,4736.5,2.11125809]
[1755157912337,0.1056,4736.9,4736.4,1.0419]
[1755157912537,0.1056,4736.9,4736.4,3.15318288]
[1755157912738,0.1056,4736.9,4736.5,2.1112539]
[1755157913256,0.1056,4736.9,4736.5,2.7088539]
[1755157913752,0.1056,4736.9,4736.6,2.70880929]
[1755157913928,0.1056,4736.9,4736.7,3.0]
[1755157914129,0.1056,4736.9,4736.8,0.5976]
[1755157914872,0.1056,4736.9,4736.6,2.11120929]
[1755157915246,0.1056,4736.9,4736.3,2.18959371]
[1755157915467,0.1056,4736.9,4736.3,0.0782524]
[1755157915767,0.1056,4736.9,4736.3,2.11234951]
[1755157915932,0.1056,4736.9,4736.4,2.11129448]
[1755157916136,0.1056,4736.9,4736.3,0.001]
[1755157916454,0.1056,4736.9,4736.4,2.11130521]
[1755157916657,0.1056,4736.9,4736.3,0.001]
[1755157916856,0.1056,4736.9,4736.6,2.11121307]
[1755157917161,0.1056,4736.9,4736.6,3.15311307]
[1755157917858,0.1056,4736.9,4736.7,2.11117396]
[1755157918060,0.1056,4736.9,4736.7,3.15307396]
[1755157918361,0.1056,4736.9,4736.7,1.0419]
[1755157918955,0.1056,4736.9,4736.6,2.1111998]
[1755157919266,0.1056,4736.9,4736.7,4.0419]
[1755157919453,0.1056,4736.9,4736.7,3.4443]
[1755157919657,0.1056,4736.9,4736.8,0.5976]
[1755157919954,0.1056,4736.9,4736.7,3.0]
[1755157920149,0.1056,4736.9,4736.7,2.1111718]
[1755157920352,0.1056,4736.9,4736.6,2.11120755]
[1755157920662,0.1056,4736.9,4736.3,2.19731072]
[1755157920862,0.1056,4736.9,4736.4,3.0]
[1755157922141,0.1056,4736.9,4736.3,0.6804894]
[1755157922341,0.1056,4736.9,4736.4,2.11130816]
[1755157922765,0.1056,4736.9,4736.5,2.11125732]
[1755157923067,0.1056,4736.9,4736.6,2.1112178]
[1755157923461,0.1056,4736.9,4736.7,3.0]
[1755157923772,0.1056,4736.9,4736.6,3.5976]
[1755157923955,0.1056,4736.9,4736.6,2.70879534]
[1755157924966,0.1056,4736.9,4736.7,2.1111667]
[1755157925178,0.1056,4736.9,4736.7,1.0419]
[1755157925474,0.1056,4736.9,4736.8,6.15302987]
[1755157926175,0.1056,4736.9,4736.8,3.5976]
[1755157926344,0.1056,4736.9,4736.8,3.0]
[1755157926539,0.1056,4736.9,4736.8,5.11112987]
[1755157926961,0.1056,4736.9,4736.8,3.0]
[1755157927241,0.1056,4736.9,4736.8,5.11112987]
[1755157928078,0.1056,4736.9,4736.8,6.15302987]
[1755157929071,0.1056,4736.9,4736.8,3.0]
[1755157929442,0.1056,4736.9,4736.8,5.11112987]
[1755157929668,0.1056,4736.9,4736.8,3.0]
[1755157929901,0.1056,4736.9,4736.8,5.11112987]
[1755157930582,0.1056,4736.9,4736.8,3.0]
[1755157931068,0.1056,4736.9,4736.8,3.1974716]
[1755157932067,0.1056,4736.9,4736.8,3.0]
[1755157932386,0.1056,4736.9,4736.8,5.11112987]
[1755157933081,3.3486,4736.9,4736.8,6.15302987]
[1755157935657,3.3486,4736.9,4736.8,3.5976]
[1755157935858,3.3486,4736.9,4736.8,3.0]
[1755157936984,3.3486,4736.9,4736.8,6.15302987]
[1755157937487,0.1056,4737.2,4737.0,2.11099681]
[1755157937688,0.1056,4737.2,4737.1,0.19769376]
[1755157937889,0.1056,4737.2,4737.1,2.30868993]
[1755157938583,3.3486,4737.2,4737.1,2.30868993]
[1755157939159,3.3486,4737.2,4737.1,2.90628993]
[1755157939688,3.3486,4737.2,4737.1,0.79529376]
[1755157939890,3.3486,4737.2,4737.1,0.19769376]
[1755157940454,3.3486,4737.2,4737.1,2.30868993]
[1755157941076,3.3486,4737.2,4737.1,0.19769376]
[1755157941673,3.8174,4737.2,4737.1,0.19769376]
[1755157943897,4.2944,4737.2,4737.1,0.19769376]
[1755157944869,3.8174,4737.2,4737.1,0.19769376]
[1755157947310,3.8174,4737.2,4737.1,0.19769376]
[1755157947815,3.3486,4737.2,4737.1,0.19769376]
[1755157949700,3.3486,4737.2,4737.1,0.79969376]
[1755157950572,3.3486,4737.2,4737.1,0.19769376]
[1755157952204,3.34268034,4737.2,4737.1,0.79969376]
[1755157952577,3.34268034,4737.2,4737.1,0.19769376]
[1755157952979,3.34268034,4737.2,4737.1,0.19772528]
[1755157955474,3.81148034,4737.2,4737.1,0.19772528]
[1755157955887,3.34268034,4737.2,4737.1,0.19772528]
[1755157958593,3.81148034,4737.2,4737.1,0.19772528]
[1755157959113,3.34268034,4737.2,4737.1,0.19772528]
[1755157960020,3.81148034,4737.2,4737.1,0.19772528]
[1755157960798,13.81148034,4737.2,4737.1,0.19772528]
[1755157963010,13.34268034,4737.2,4737.1,0.19772528]
[1755157963789,3.34268034,4737.2,4737.1,1.22832528]
[1755157964701,3.34268034,4737.2,4737.1,1.22830381]
[1755157966723,3.34268034,4737.2,4737.1,0.79970381]
[1755157967089,3.34268034,4737.2,4737.1,0.19770381]
[1755157967587,0.1056,4737.2,4737.1,0.19770381]
[1755157967794,3.3466,4737.2,4737.1,0.19770381]
[1755157967992,3.3466,4737.2,4737.1,0.79970381]
[1755157968390,3.3466,4737.2,4737.1,0.19770381]
[1755157968631,3.8154,4737.2,4737.1,0.19770381]
[1755157968797,3.3466,4737.2,4737.1,0.19770381]
[1755157969123,3.3466,4737.2,4737.1,0.19870381]
[1755157969289,3.3486,4737.2,4737.1,0.19870381]
[1755157971119,3.36977391,4737.2,4737.1,0.19870381]
[1755157971322,3.8174,4737.2,4737.1,0.19870381]
[1755157972740,3.3486,4737.2,4737.1,0.19870381]
[1755157972894,3.7957,4737.2,4737.1,0.19870381]
[1755157973100,4.29387391,4737.2,4737.1,0.19870381]
[1755157973325,0.002,4737.2,4737.1,0.001]
[1755157973533,3.3486,4737.2,4737.1,0.001]
[1755157977738,0.002,4737.2,4737.1,1.0354]
[1755157978041,3.3486,4737.2,4737.1,1.0354]
[1755157979429,0.1076,4737.2,4737.1,1.0354]
[1755157979743,3.3476,4737.2,4737.1,1.0354]
[1755157980446,0.1076,4737.2,4737.1,6.54993617]
[1755157980742,0.002,4737.2,4737.1,8.55285358]
[1755157980958,0.002,4738.1,4738.0,2.11059518]
[1755157981254,0.002,4738.1,4738.0,6.27170113]
[1755157981456,0.6459,4740.0,4738.0,6.27170113]
[1755157981457,0.1988,4740.0,4738.5,2.11037248]
[1755157981657,0.1988,4740.0,4738.5,3.14477248]
[1755157981818,3.24,4739.8,4738.9,2.11019434]
[1755157982012,3.24,4739.8,4739.1,4.00669149]
[1755157982244,3.24,4739.8,4739.1,5.56040529]
[1755157982465,3.24,4739.8,4739.1,7.13315359]
[1755157983150,3.24,4739.8,4739.3,2.11001624]
[1755157983354,3.24,4739.8,4739.3,6.25001624]
[1755157983656,0.1988,4740.0,4739.3,6.25001624]
[1755157983852,0.1988,4740.0,4739.3,6.14441624]
[1755157983853,3.4388,4740.0,4739.3,6.14441624]
[1755157984025,1e-08,4739.6,4739.5,2.1099272]
[1755157984345,1e-08,4739.6,4739.5,7.60578172]
[1755157987049,1e-08,4739.6,4739.5,7.15548172]
[1755157987249,1e-08,4739.6,4739.5,7.60578172]
[1755157987671,1e-08,4739.6,4739.5,6.57138172]
[1755157987954,1e-08,4739.6,4739.5,5.1099272]
[1755157989988,1e-08,4739.6,4739.5,3.0]
[1755157993325,1e-08,4739.6,4739.5,5.1099272]
[1755157993547,1e-08,4739.6,4739.5,3.5841]
[1755157993758,1e-08,4739.6,4739.5,3.0]
[1755157997042,0.44710001,4739.6,4739.5,3.0]
[1755157998145,0.90410001,4739.6,4738.6,0.1056]
[1755157998364,0.90410001,4739.6,4738.7,2.11028021]
[1755157998563,0.90410001,4739.6,4738.4,2.11039765]
[1755157998564,0.1056,4739.0,4738.8,2.11023734]
[1755157998948,0.1056,4739.0,4738.6,2.11028525]
[1755157999156,0.1056,4739.0,4738.7,1.0344]
[1755157999352,0.1056,4739.0,4738.9,3.0]
[1755158000941,3.3436,4739.0,4738.8,0.5841]
[1755158001173,3.3436,4739.0,4738.5,3.0]
[1755158001389,3.3436,4739.0,4738.8,2.11023745]
[1755158001590,3.3436,4739.0,4738.9,2.63369434]
[1755158001762,3.3436,4739.0,4738.9,3.08039434]
[1755158001967,3.3436,4739.0,4738.9,6.08039434]
[1755158002164,3.238,4739.0,4738.9,6.08039434]
[1755158002359,3.238,4739.0,4738.9,6.92162201]
[1755158008276,3.238,4739.0,4738.9,11.92162201]
[1755158008482,0.1988,4740.0,4738.9,11.92162201]
[1755158008483,0.1988,4740.0,4739.9,2.10974915]
[1755158008658,0.1988,4740.0,4739.9,6.41318406]
[1755158009267,1e-08,4740.0,4739.9,6.61198406]
[1755158009500,3.237,4741.3,4740.5,2.10948212]
[1755158009698,3.237,4741.3,4740.5,6.27655056]
[1755158009897,1e-08,4740.6,4740.5,6.38215056]
[1755158010067,1e-08,4740.6,4740.5,7.64313232]
[1755158010263,1e-08,4740.6,4740.5,10.88013232]
[1755158010470,1e-08,4741.5,4741.4,2.1090817]
[1755158010796,3.237,4742.8,4742.7,2.10850359]
[1755158010976,3.237,4742.8,4742.7,2.30537203]
[1755158011177,5.061,4744.9,4742.7,0.19686844]
[1755158011398,0.4411,4744.3,4742.8,0.19686844]
[1755158011695,0.4411,4744.3,4743.4,2.1081586]
[1755158011895,0.4411,4744.3,4743.6,2.10809102]
[1755158012096,0.4411,4744.3,4743.7,2.30492442]
[1755158012281,0.4411,4744.3,4743.8,0.19686844]
[1755158012480,5.061,4744.9,4743.9,0.19686844]
[1755158012680,5.061,4744.9,4743.7,0.5235]
[1755158012681,3.241,4744.8,4744.1,0.1056]
[1755158012868,3.241,4744.8,4744.2,0.19686844]
[1755158013072,3.241,4744.8,4744.3,2.30462483]
[1755158013270,3.241,4744.8,4744.4,2.30460329]
[1755158013476,3.241,4744.8,4744.6,2.10765064]
[1755158013698,3.241,4744.8,4744.7,0.19686844]
[1755158014218,0.632125,4746.4,4744.7,0.19686844]
[1755158014219,3.24,4745.9,4744.7,1.27266844]
[1755158014526,0.36811,4745.8,4745.6,2.1072097]
[1755158014677,3.24,4745.9,4745.7,0.19686844]
[1755158015401,3.6811,4745.9,4745.0,2.73655738]
[1755158015572,3.6811,4745.9,4745.1,0.19515358]
[1755158015774,3.6811,4745.9,4745.4,2.10729352]
[1755158016006,0.4411,4745.8,4745.4,2.10729352]
[1755158016207,0.36811,4745.7,4745.4,2.10729352]
[1755158016403,0.36811,4745.7,4745.2,2.10736389]
[1755158016704,0.36811,4745.7,4745.0,0.1056]
[1755158016705,0.80921,4745.7,4745.0,0.1056]
[1755158016878,0.80921,4745.7,4745.1,2.30231772]
[1755158017081,0.80921,4745.7,4744.9,3.0]
[1755158017423,3.24,4745.9,4745.7,2.10716624]
[1755158017576,3.24,4745.9,4745.5,2.10721916]
[1755158018008,3.24,4745.9,4745.5,0.5235]
[1755158018492,3.24,4745.9,4745.3,5.21291275]
[1755158018800,3.24,4745.9,4745.5,2.10725468]
[1755158019803,3.24,4745.9,4745.3,2.21290747]
[1755158020302,3.24,4745.9,4745.3,3.1056]
[1755158020489,3.24,4745.9,4745.3,0.1056]
[1755158021094,3.24,4745.9,4745.4,2.10729513]
[1755158021404,3.24,4745.9,4745.3,0.1056]
[1755158021573,0.02117391,4745.8,4744.7,3.0]
[1755158021777,3.6811,4745.9,4745.0,0.1056]
[1755158021972,3.6811,4745.9,4745.2,2.10739227]
[1755158022197,3.24,4745.9,4745.2,2.10739227]
[1755158023199,3.24,4745.9,4745.3,0.02107348]
[1755158023391,3.24,4745.9,4745.3,3.6291]
[1755158023593,3.24,4745.9,4745.5,2.10725051]
[1755158023791,3.24,4745.9,4745.5,3.07745051]
[1755158023997,3.24,4745.9,4745.6,0.5235]
[1755158024203,3.24,4745.9,4745.4,2.10730059]
[1755158024404,3.24,4745.9,4745.3,0.1056]
[1755158025729,3.24,4745.9,4745.4,2.10729702]
[1755158026503,3.24,4745.9,4745.3,0.1056]
[1755158027517,3.24,4745.9,4745.2,2.10737922]
[1755158027896,3.24,4745.9,4745.3,0.08263134]
[1755158029805,3.24,4745.9,4745.3,2.18993661]
[1755158031090,3.24,4745.9,4745.4,2.10729847]